bitfinex/quotes_BTCUSD_20250211
["timestamp","ask_amount","ask_price","bid_price","bid_amount"]
[1739284203857,0.15,97045.0,97038.0,0.154577]
[1739284204220,0.154569,97044.0,97037.0,0.206106]
[1739284205009,0.15,97045.0,97040.0,0.154575]
[1739284205345,0.02165953,97057.0,97056.0,0.154549]
[1739284205532,0.08462,97075.0,97059.0,0.154544]
[1739284205533,0.154522,97073.0,97059.0,0.154544]
[1739284205741,0.15,97072.0,97055.0,0.206068]
[1739284205962,0.02145422,97062.0,97054.0,0.25157]
[1739284206166,0.02145422,97062.0,97058.0,0.154545]
[1739284206661,0.154534,97066.0,97058.0,0.154545]
[1739284206820,0.304532,97067.0,97056.0,0.206064]
[1739284207023,0.304532,97067.0,97058.0,0.154545]
[1739284207231,0.02041712,97069.0,97054.0,0.0455]
[1739284207592,0.32494612,97069.0,97060.0,0.154542]
[1739284207741,0.17041712,97069.0,97060.0,0.154543]
[1739284207941,0.17041712,97069.0,97061.0,0.15454]
[1739284208312,0.002,97062.0,97059.0,0.154543]
[1739284208519,0.002,97062.0,97055.0,0.206068]
[1739284208798,0.02041712,97069.0,97042.0,0.1248]
[1739284208799,0.304543,97061.0,97042.0,0.1248]
[1739284208928,0.15,97061.0,97060.0,0.154543]
[1739284209123,0.15,97061.0,97059.0,0.154544]
[1739284209403,0.15,97061.0,97054.0,0.20607]
[1739284209604,0.15,97061.0,97060.0,0.154543]
[1739284209909,0.001,97062.0,97058.0,0.20606]
[1739284210167,0.001,97062.0,97060.0,0.154542]
[1739284210383,0.001,97062.0,97058.0,0.206061]
[1739284210384,0.001,97062.0,97061.0,0.154541]
[1739284210599,0.0011065,97062.0,97061.0,0.279341]
[1739284211018,0.0011065,97062.0,97061.0,0.38184465]
[1739284211647,0.0001065,97062.0,97061.0,0.38184465]
[1739284211852,0.0001065,97062.0,97061.0,0.38084465]
[1739284212283,0.0001065,97062.0,97061.0,0.38284465]
[1739284212493,0.0001065,97062.0,97061.0,0.280341]
[1739284212699,0.0001065,97062.0,97061.0,0.0465]
[1739284212905,0.0001065,97062.0,97061.0,0.154541]
[1739284213112,0.0001065,97062.0,97056.0,0.206064]
[1739284213320,0.0001065,97062.0,97061.0,0.002]
[1739284213525,0.0001065,97062.0,97061.0,0.003]
[1739284214839,0.3046465,97062.0,97061.0,0.003]
[1739284215049,0.3046465,97062.0,97061.0,0.001]
[1739284215655,0.3046465,97062.0,97054.0,0.15477565]
[1739284215867,0.154551,97055.0,97054.0,0.00022365]
[1739284216020,0.304551,97055.0,97054.0,0.00022365]
[1739284217636,0.30649569,97055.0,97054.0,0.00022365]
[1739284217853,0.304551,97055.0,97054.0,0.00022365]
[1739284218256,0.304551,97055.0,97054.0,0.00122365]
[1739284218462,0.304551,97055.0,97054.0,0.00222365]
[1739284218897,0.306551,97055.0,97054.0,0.00222365]
[1739284219100,0.306551,97055.0,97054.0,0.00022365]
[1739284219314,0.48975465,97055.0,97054.0,0.00022365]
[1739284219521,0.48775465,97055.0,97054.0,0.00022365]
[1739284219726,0.48275465,97055.0,97054.0,0.00022365]
[1739284220145,0.49175465,97055.0,97054.0,0.00122365]
[1739284220549,0.52111918,97055.0,97054.0,0.00122365]
[1739284220960,0.313551,97055.0,97054.0,0.00122365]
[1739284221376,0.304551,97055.0,97054.0,0.00022365]
[1739284221657,0.324551,97055.0,97054.0,0.00222365]
[1739284221867,0.42705465,97055.0,97054.0,0.00222365]
[1739284222071,0.45642495,97055.0,97054.0,0.00222365]
[1739284222368,0.42705465,97055.0,97054.0,0.00222365]
[1739284222589,0.45643247,97055.0,97054.0,0.00222365]
[1739284223196,0.35392882,97055.0,97054.0,0.00222365]
[1739284223414,0.17,97055.0,97054.0,0.00222365]
[1739284223610,0.324551,97055.0,97054.0,0.00222365]
[1739284224560,0.17,97055.0,97054.0,0.00222365]
[1739284224784,0.324551,97055.0,97054.0,0.00342365]
[1739284225358,0.17,97055.0,97054.0,0.00342365]
[1739284225798,0.17,97055.0,97054.0,0.04912365]
[1739284227145,0.02,97055.0,97054.0,0.04912365]
[1739284227347,0.02,97055.0,97054.0,0.20367665]
[1739284227544,0.014,97055.0,97054.0,0.27977665]
[1739284227922,0.001,97055.0,97054.0,0.27877665]
[1739284228126,0.0001065,97061.0,97054.0,0.12422365]
[1739284228346,0.001,97055.0,97054.0,0.12422365]
[1739284228546,0.001,97055.0,97054.0,0.27877665]
[1739284228754,0.0001065,97061.0,97054.0,0.27877665]
[1739284228963,0.0001065,97061.0,97054.0,0.12422365]
[1739284229391,0.0001065,97061.0,97054.0,0.27877665]
[1739284229802,0.0041065,97061.0,97054.0,0.27877665]
[1739284230018,0.0041065,97061.0,97054.0,0.12422365]
[1739284230225,0.0041065,97061.0,97060.0,0.154543]
[1739284230435,0.0041065,97061.0,97058.0,0.20606]
[1739284230638,0.0041065,97061.0,97060.0,0.154543]
[1739284231050,0.0061065,97061.0,97060.0,0.231643]
[1739284231261,0.0021065,97061.0,97060.0,0.33414665]
[1739284231469,0.0021065,97061.0,97060.0,0.231643]
[1739284231697,0.0081065,97061.0,97060.0,0.231643]
[1739284231909,0.0041065,97061.0,97060.0,0.37944665]
[1739284232133,0.0001065,97061.0,97060.0,0.37944665]
[1739284232340,0.0031065,97061.0,97060.0,0.38844665]
[1739284232554,0.154479,97101.0,97060.0,0.38844665]
[1739284232555,0.02085506,97099.0,97091.0,0.154494]
[1739284232765,0.00099041,97121.0,97091.0,0.154494]
[1739284232766,0.205941,97115.0,97091.0,0.22490365]
[1739284232972,0.15,97108.0,97091.0,0.37939765]
[1739284233181,0.01936233,97108.0,97091.0,0.276894]
[1739284233395,0.154468,97107.0,97091.0,0.276894]
[1739284233603,0.15,97104.0,97091.0,0.276894]
[1739284234625,0.0001065,97105.0,97091.0,0.38039765]
[1739284234921,0.0001065,97105.0,97091.0,0.38139765]
[1739284236348,0.0001065,97105.0,97091.0,0.38039765]
[1739284237067,0.0001065,97105.0,97091.0,0.37939765]
[1739284237718,0.0011065,97092.0,97091.0,0.39839765]
[1739284237921,0.0011065,97092.0,97091.0,1.0660013]
[1739284238155,0.0001065,97105.0,97104.0,0.276873]
[1739284238326,0.0001065,97105.0,97104.0,0.37937665]
[1739284238327,0.00055053,97105.0,97104.0,0.37937665]
[1739284238556,0.00055053,97105.0,97104.0,0.40237665]
[1739284239506,0.00099041,97126.0,97125.0,0.15444]
[1739284239708,0.00013318,97126.0,97125.0,0.39478765]
[1739284241098,0.00013318,97126.0,97125.0,0.41778765]
[1739284241451,0.00013318,97126.0,97125.0,0.42178765]
[1739284241693,0.00013318,97126.0,97125.0,0.39334365]
[1739284241940,0.00013318,97126.0,97125.0,0.38934365]
[1739284242145,4.171e-05,97126.0,97125.0,0.38634365]
[1739284242361,4.171e-05,97126.0,97125.0,0.39434365]
[1739284242852,4.171e-05,97126.0,97125.0,0.42334365]
[1739284243025,4.171e-05,97126.0,97125.0,0.5258473]
[1739284243430,4.171e-05,97126.0,97125.0,0.42334365]
[1739284243636,4.171e-05,97126.0,97125.0,0.40834365]
[1739284243989,4.171e-05,97126.0,97125.0,0.40234365]
[1739284244169,4.171e-05,97126.0,97125.0,0.41734365]
[1739284244371,4.171e-05,97126.0,97125.0,0.42434365]
[1739284244672,0.0001066,97139.0,97138.0,0.302919]
[1739284244832,0.0001066,97139.0,97138.0,0.94752265]
[1739284246068,0.00099002,97148.0,97147.0,0.279905]
[1739284246274,0.00099002,97158.0,97148.0,0.154403]
[1739284246466,0.00099002,97158.0,97148.0,0.25690665]
[1739284247917,0.00099002,97158.0,97148.0,0.26190665]
[1739284248197,0.00099002,97158.0,97148.0,0.27290665]
[1739284248427,0.00099002,97158.0,97148.0,0.26190665]
[1739284248635,0.00099002,97158.0,97148.0,0.26690665]
[1739284248847,0.00099002,97158.0,97148.0,0.10250365]
[1739284248968,0.15,97157.0,97148.0,0.012]
[1739284249174,0.304602,97149.0,97148.0,0.016]
[1739284249611,0.3067996,97149.0,97148.0,0.016]
[1739284251021,0.205889,97140.0,97126.0,0.08256914]
[1739284251294,0.15338762,97149.0,97126.0,0.08256914]
[1739284251507,0.15338762,97149.0,97115.0,0.08256914]
[1739284251508,0.15,97127.0,97115.0,0.08256914]
[1739284251677,0.15,97127.0,97115.0,0.08270232]
[1739284251878,0.15659755,97126.0,97115.0,0.23715732]
[1739284252277,0.15758757,97126.0,97115.0,0.23715732]
[1739284252478,0.154441,97125.0,97115.0,0.08270232]
[1739284252705,0.00215871,97124.0,97115.0,0.08270232]
[1739284252913,0.00215871,97124.0,97115.0,0.00013318]
[1739284253255,0.00099002,97126.0,97115.0,0.00013318]
[1739284253375,0.00209611,97123.0,97115.0,0.15458718]
[1739284253576,0.309437,97127.0,97115.0,0.15458718]
[1739284253808,0.0020942,97122.0,97116.0,0.154454]
[1739284254018,0.155,97127.0,97116.0,0.154454]
[1739284254217,0.00209399,97121.0,97117.0,0.154452]
[1739284254439,0.003,97125.0,97115.0,0.00013318]
[1739284254680,0.00209335,97120.0,97119.0,0.154449]
[1739284254892,0.00099002,97126.0,97118.0,0.205935]
[1739284255094,0.00099002,97126.0,97119.0,0.154449]
[1739284255230,0.00099002,97126.0,97116.0,0.10250365]
[1739284255434,0.00209864,97125.0,97117.0,0.001]
[1739284255651,0.15,97127.0,97116.0,0.10250365]
[1739284255854,0.00209906,97126.0,97115.0,0.00013318]
[1739284256049,0.154442,97124.0,97118.0,0.002]
[1739284256277,0.00209927,97123.0,97118.0,0.003]
[1739284256500,0.154449,97119.0,97118.0,0.003]
[1739284256885,0.30654869,97119.0,97118.0,0.003]
[1739284257448,0.30654869,97119.0,97118.0,0.001]
[1739284257574,0.304454,97116.0,97115.0,0.00013318]
[1739284258187,0.30655369,97116.0,97115.0,0.00013318]
[1739284259368,0.31055369,97116.0,97115.0,0.00013318]
[1739284259481,0.41305734,97116.0,97115.0,0.00013318]
[1739284259725,0.154488,97095.0,97087.0,0.07770232]
[1739284259923,0.154497,97089.0,97087.0,0.07770232]
[1739284260172,0.205943,97114.0,97075.0,0.0471]
[1739284260173,0.00207359,97094.0,97075.0,0.0471]
[1739284260377,0.00207296,97088.0,97075.0,0.154518]
[1739284260549,0.154524,97072.0,97063.0,0.08279279]
[1739284260766,0.154525,97072.0,97064.0,0.10250365]
[1739284261007,0.00204851,97071.0,97064.0,0.10250365]
[1739284261381,0.15452,97075.0,97065.0,0.154535]
[1739284261575,0.154517,97077.0,97066.0,0.154532]
[1739284261810,0.00203244,97074.0,97063.0,0.00022365]
[1739284262014,0.0020337,97076.0,97066.0,0.00044403]
[1739284262168,0.12105369,97094.0,97066.0,0.00044403]
[1739284262169,0.304532,97067.0,97066.0,0.00044403]
[1739284262573,0.30651159,97067.0,97066.0,0.00044403]
[1739284263310,0.40901524,97067.0,97066.0,0.00044403]
[1739284263560,5.45901524,97067.0,97066.0,0.00044403]
[1739284263771,5.11741524,97067.0,97066.0,0.00044403]
[1739284263985,5.11741524,97067.0,97063.0,0.00022365]
[1739284263986,0.164537,97064.0,97063.0,0.00022365]
[1739284264201,5.46704065,97064.0,97063.0,0.00035694]
[1739284264411,5.46929828,97064.0,97063.0,0.00035694]
[1739284264619,0.02,97062.0,97046.0,0.03914972]
[1739284264833,0.20607,97055.0,97046.0,0.03914972]
[1739284265044,0.154564,97047.0,97046.0,0.03914972]
[1739284265247,0.15458,97037.0,97036.0,0.08256914]
[1739284265458,0.206055,97061.0,97036.0,0.08256914]
[1739284265672,2.96280365,97060.0,97025.0,0.28870014]
[1739284265884,0.154564,97047.0,97046.0,0.001]
[1739284266295,0.17470888,97047.0,97046.0,0.001]
[1739284267108,0.15458,97037.0,97025.0,0.08256914]
[1739284267224,0.304578,97039.0,97036.0,0.001]
[1739284267452,0.30458,97037.0,97036.0,0.001]
[1739284267733,0.02014488,97047.0,97036.0,0.001]
[1739284267937,0.154573,97041.0,97028.0,0.154592]
[1739284268140,0.15,97045.0,97027.0,0.154595]
[1739284268280,0.15,97045.0,97026.0,0.154596]
[1739284268619,0.02014488,97047.0,97036.0,0.003]
[1739284268620,0.15458,97037.0,97036.0,0.003]
[1739284269030,0.154565,97046.0,97013.0,0.0826842]
[1739284269239,0.001,97041.0,97021.0,0.154604]
[1739284269460,0.001,97041.0,97016.0,0.20615]
[1739284269597,0.154588,97032.0,97016.0,0.20615]
[1739284269996,0.154588,97032.0,97019.0,0.154608]
[1739284270220,0.206113,97034.0,97016.0,0.20615]
[1739284270427,0.206105,97038.0,97016.0,0.20615]
[1739284270664,0.15458,97037.0,97036.0,0.001]
[1739284270980,0.20615524,97038.0,97017.0,0.20637086]
[1739284271161,0.15458,97037.0,97023.0,0.154601]
[1739284271365,0.154582,97036.0,97031.0,0.00422365]
[1739284271582,0.20615424,97038.0,97031.0,0.00422365]
[1739284271583,5.024e-05,97038.0,97031.0,0.00422365]
[1739284271790,0.154588,97032.0,97031.0,0.00022365]
[1739284272726,0.304588,97032.0,97031.0,0.00022365]
[1739284273140,0.304588,97032.0,97031.0,0.00222365]
[1739284273494,0.32480632,97032.0,97031.0,0.00222365]
[1739284273676,0.32480632,97032.0,97031.0,0.00622365]
[1739284274089,0.32480632,97032.0,97031.0,0.00222365]
[1739284274313,0.32480632,97032.0,97031.0,0.00022365]
[1739284274479,0.32480632,97032.0,97031.0,0.00422365]
[1739284274712,0.32480632,97032.0,97031.0,0.00622365]
[1739284274927,0.42730997,97032.0,97031.0,0.00622365]
[1739284275293,0.32480632,97032.0,97031.0,0.00622365]
[1739284276137,0.44598933,97032.0,97031.0,0.00622365]
[1739284276341,5.49598933,97032.0,97031.0,0.00622365]
[1739284276700,0.30461,97018.0,97017.0,0.00022386]
[1739284276875,0.40711365,97018.0,97017.0,0.00022386]
[1739284277051,5.45711365,97018.0,97017.0,0.00022386]
[1739284277619,5.49011365,97018.0,97017.0,0.00022386]
[1739284277827,0.304628,97007.0,97006.0,0.00022365]
[1739284278031,0.65945165,97007.0,97006.0,0.00022365]
[1739284279105,0.65950186,97007.0,97006.0,0.00022365]
[1739284279605,0.15,97006.0,96980.0,0.04135938]
[1739284279807,0.15466,96987.0,96980.0,0.04135938]
[1739284279985,0.10250365,97005.0,96980.0,0.04135938]
[1739284280190,0.15,97003.0,96975.0,0.15490186]
[1739284280394,0.15466,96987.0,96975.0,0.15490186]
[1739284280570,0.15,96996.0,96978.0,0.154674]
[1739284280775,0.15,97000.0,96978.0,0.154674]
[1739284280998,0.15,96998.0,96977.0,0.15489865]
[1739284281199,0.154658,96988.0,96977.0,0.00022365]
[1739284281433,0.154656,96989.0,96977.0,0.00022365]
[1739284281647,0.17563454,96989.0,96977.0,0.00022365]
[1739284281807,0.154658,96988.0,96977.0,0.00022365]
[1739284282010,0.17563554,96989.0,96977.0,0.00022365]
[1739284282545,0.15,96998.0,96977.0,0.00022365]
[1739284282729,0.001,96989.0,96977.0,0.00022365]
[1739284282976,0.155657,96989.0,96977.0,0.00022365]
[1739284283189,0.154659,96988.0,96977.0,0.00022365]
[1739284283398,0.001,96989.0,96988.0,0.154658]
[1739284283611,0.001,96989.0,96988.0,0.33466165]
[1739284283827,0.001,96989.0,96988.0,0.38286165]
[1739284284036,0.002,96989.0,96988.0,0.38286165]
[1739284284235,0.09135953,97037.0,96988.0,0.25120365]
[1739284284461,0.0001067,97032.0,97006.0,0.232129]
[1739284284688,0.0001067,97032.0,97006.0,0.33463265]
[1739284284916,0.0001067,97032.0,97006.0,0.38283265]
[1739284285161,0.0001067,97032.0,97006.0,0.40183265]
[1739284285597,0.0001067,97032.0,97031.0,0.154589]
[1739284285801,0.0001067,97032.0,97031.0,0.25709265]
[1739284286011,0.0001067,97032.0,97031.0,0.25509265]
[1739284286616,0.0001067,97032.0,97029.0,0.154591]
[1739284286837,0.0001067,97032.0,97006.0,0.12583287]
[1739284287049,0.0001067,97032.0,97011.0,0.08256914]
[1739284287208,0.206124,97029.0,97012.0,0.10250365]
[1739284287415,0.154597,97027.0,97012.0,0.10250365]
[1739284287662,0.0021067,97032.0,97006.0,0.12583287]
[1739284287860,0.15462,97012.0,97006.0,0.12583287]
[1739284288066,0.0021067,97032.0,97006.0,0.12583287]
[1739284288067,0.15,97030.0,97006.0,0.00013287]
[1739284288295,0.154622,97011.0,97006.0,0.00013287]
[1739284288474,0.154628,97007.0,97006.0,0.00013287]
[1739284288823,0.304628,97007.0,97006.0,0.00013287]
[1739284290028,0.306628,97007.0,97006.0,0.00413287]
[1739284290439,0.40713165,97007.0,97006.0,0.00413287]
[1739284290655,5.45713165,97007.0,97006.0,0.00413287]
[1739284290861,5.48713165,97007.0,97006.0,0.00413287]
[1739284291064,0.64003165,97007.0,97006.0,0.00413287]
[1739284291285,0.311628,97007.0,97006.0,0.00013287]
[1739284291494,0.164628,97007.0,97006.0,0.00013287]
[1739284291701,0.161628,97007.0,97006.0,0.00013287]
[1739284292115,0.160628,97007.0,97006.0,0.00013287]
[1739284292326,0.154628,97007.0,97006.0,0.00013287]
[1739284292572,0.167628,97007.0,97006.0,0.00013287]
[1739284292753,0.170628,97007.0,97006.0,0.00013287]
[1739284292957,0.154628,97007.0,97006.0,0.00013287]
[1739284293168,0.161628,97007.0,97006.0,0.00013287]
[1739284293727,0.206164,97010.0,97006.0,0.00013287]
[1739284293942,0.160628,97007.0,97006.0,0.00013287]
[1739284294350,0.164628,97007.0,97006.0,0.00013287]
[1739284294572,0.160628,97007.0,97006.0,0.00013287]
[1739284295336,0.154628,97007.0,97006.0,0.00013287]
[1739284295499,0.155628,97007.0,97006.0,0.00013287]
[1739284295701,0.154644,96997.0,96985.0,0.154661]
[1739284295859,0.15,97004.0,96980.0,0.00044362]
[1739284296060,0.15,97002.0,96980.0,0.00044362]
[1739284296291,0.154669,96982.0,96980.0,0.00044362]
[1739284296490,0.206219,96984.0,96980.0,0.00044362]
[1739284296751,0.154666,96983.0,96980.0,0.00044362]
[1739284296952,0.154669,96981.0,96980.0,0.00044362]
[1739284297131,0.206219,96984.0,96980.0,0.00044362]
[1739284297132,0.154665,96984.0,96980.0,0.00044362]
[1739284297365,0.154666,96983.0,96980.0,0.00044362]
[1739284297535,0.154669,96981.0,96980.0,0.00044362]
[1739284298004,0.154668,96982.0,96980.0,0.00044362]
[1739284298191,0.154669,96981.0,96980.0,0.00044362]
[1739284298396,0.001,96982.0,96980.0,0.00144362]
[1739284298838,0.001,96982.0,96980.0,0.00044362]
[1739284299169,0.02034118,96996.0,96980.0,0.00044362]
[1739284299374,0.154661,96986.0,96980.0,0.00144362]
[1739284299585,0.15,96994.0,96980.0,0.00144362]
[1739284299795,0.001,96981.0,96980.0,0.00144362]
[1739284300358,0.15466,96987.0,96980.0,0.00144362]
[1739284300572,0.154655,96990.0,96980.0,0.15611362]
[1739284300782,0.15,96994.0,96980.0,0.00144362]
[1739284300783,0.154654,96991.0,96980.0,0.00144362]
[1739284300984,0.154656,96989.0,96980.0,0.00044362]
[1739284301189,0.206196,96995.0,96981.0,0.206225]
[1739284301190,0.15,96994.0,96981.0,0.206225]
[1739284301419,0.15,96994.0,96980.0,0.10394727]
[1739284301618,0.206213,96987.0,96980.0,0.00044362]
[1739284301836,0.15,96994.0,96980.0,0.00044362]
[1739284301837,0.154669,96981.0,96980.0,0.00044362]
[1739284302011,0.15,96994.0,96980.0,0.00044362]
[1739284302258,0.154668,96982.0,96980.0,0.00044362]
[1739284302459,0.001,96986.0,96980.0,0.00044362]
[1739284302684,0.154669,96981.0,96980.0,0.00044362]
[1739284303099,0.155669,96981.0,96980.0,0.00044362]
[1739284303503,0.154669,96981.0,96980.0,0.00044362]
[1739284305718,0.155669,96981.0,96980.0,0.00044362]
[1739284307333,0.17297451,96981.0,96980.0,0.00044362]
[1739284308410,0.17197451,96981.0,96980.0,0.00044362]
[1739284308613,0.18197451,96981.0,96980.0,0.00044362]
[1739284308823,0.18497451,96981.0,96980.0,0.00044362]
[1739284309043,0.20541955,96981.0,96980.0,0.00044362]
[1739284309240,0.19241955,96981.0,96980.0,0.00066769]
[1739284309468,0.02844504,96981.0,96980.0,0.00066769]
[1739284309681,0.008,96981.0,96980.0,0.00066769]
[1739284309906,0.008,96981.0,96980.0,0.15533869]
[1739284310124,0.008,96981.0,96980.0,0.33834234]
[1739284310558,0.008,96981.0,96980.0,0.38574234]
[1739284310779,0.008,96981.0,96980.0,0.63389031]
[1739284310989,0.0001067,97031.0,96992.0,0.0474]
[1739284311208,0.206098,97042.0,97018.0,0.0805]
[1739284311424,0.206098,97042.0,97027.0,0.154596]
[1739284311425,0.304573,97041.0,97027.0,0.154596]
[1739284311660,0.02058962,97035.0,97018.0,0.0805]
[1739284311867,0.154605,97022.0,97008.0,0.0805]
[1739284311998,0.206115,97033.0,97010.0,0.154622]
[1739284312203,0.154604,97022.0,97010.0,0.154622]
[1739284312409,0.011,97031.0,97009.0,0.08256914]
[1739284312615,0.15,97025.0,96986.0,0.16306914]
[1739284312871,0.10250365,97030.0,96997.0,0.00044362]
[1739284312872,0.154642,96998.0,96997.0,0.00044362]
[1739284313497,0.17373549,96998.0,96997.0,0.00044362]
[1739284314598,0.01909349,96998.0,96997.0,0.00044362]
[1739284314800,0.17373549,96998.0,96997.0,0.00044362]
[1739284315387,0.17473549,96998.0,96997.0,0.00044362]
[1739284316159,0.17373549,96998.0,96997.0,0.00044362]
[1739284316293,0.17373549,96998.0,96997.0,0.00144362]
[1739284316502,0.02009349,96998.0,96997.0,0.00144362]
[1739284316696,0.17473549,96998.0,96997.0,0.00144362]
[1739284317123,0.17473549,96998.0,96997.0,0.00264362]
[1739284317329,0.02009349,96998.0,96997.0,0.00264362]
[1739284317876,0.01909349,96998.0,96997.0,0.15628662]
[1739284318206,0.02109349,96998.0,96997.0,0.15628662]
[1739284318417,0.02009349,96998.0,96997.0,0.15628662]
[1739284318621,0.01909349,96998.0,96997.0,0.23218662]
[1739284318824,0.001,96998.0,96997.0,0.23218662]
[1739284319059,0.09164037,97001.0,96997.0,0.07754362]
[1739284319229,0.09164037,97001.0,96998.0,0.154641]
[1739284319835,0.001,96998.0,96997.0,0.24218662]
[1739284320904,0.001,96998.0,96997.0,0.40814793]
[1739284321104,0.0001068,96998.0,96997.0,0.59834793]
[1739284321322,0.0001068,96998.0,96997.0,0.62134793]
[1739284321856,0.0001068,96998.0,96997.0,0.55789027]
[1739284322055,0.0001068,96998.0,96997.0,0.54089027]
[1739284322318,0.0011068,96998.0,96997.0,0.53889027]
[1739284322527,0.0011068,96998.0,96997.0,0.54089027]
[1739284322681,0.0011068,96998.0,96997.0,0.05184362]
[1739284322885,0.0011068,96998.0,96997.0,0.05384362]
[1739284323089,0.0011068,96998.0,96997.0,0.20848662]
[1739284323481,0.0011068,96998.0,96997.0,0.05384362]
[1739284323681,0.0011068,96998.0,96997.0,0.16028662]
[1739284323880,0.0202447,96998.0,96997.0,0.16028662]
[1739284324308,0.0202447,96998.0,96997.0,0.15928662]
[1739284324579,0.0202447,96998.0,96997.0,0.01364362]
[1739284324802,0.0202447,96998.0,96997.0,0.16828662]
[1739284324962,0.0212447,96998.0,96997.0,0.16128662]
[1739284325164,0.0202447,96998.0,96997.0,0.16128662]
[1739284325364,0.0212447,96998.0,96997.0,0.17428662]
[1739284326346,0.0212447,96998.0,96997.0,0.27679027]
[1739284328218,0.0212447,96998.0,96997.0,0.4698089]
[1739284328531,0.09164037,97018.0,97017.0,0.278712]
[1739284328737,0.09164037,97018.0,97017.0,0.38121565]
[1739284328943,0.02651514,97018.0,97017.0,0.56421565]
[1739284329137,0.00828,97083.0,97020.0,0.15]
[1739284329300,0.206036,97070.0,97030.0,0.023]
[1739284329496,0.154545,97059.0,97032.0,0.206117]
[1739284329703,0.206033,97072.0,97033.0,0.10250365]
[1739284330078,0.206042,97068.0,97052.0,0.154555]
[1739284330278,0.02109019,97076.0,97047.0,0.206084]
[1739284330526,0.206029,97074.0,97049.0,0.206081]
[1739284330730,0.154527,97070.0,97055.0,0.15455]
[1739284330940,0.154542,97061.0,97050.0,0.10250365]
[1739284331163,0.02513333,97071.0,97035.0,0.08256914]
[1739284331377,0.15,97067.0,97049.0,0.08256914]
[1739284331811,0.154547,97058.0,97047.0,0.001]
[1739284332018,0.15,97067.0,97042.0,0.206095]
[1739284332243,0.206047,97065.0,97043.0,0.03085986]
[1739284332457,0.02813333,97071.0,97045.0,0.08256914]
[1739284332659,0.02813333,97071.0,97050.0,0.0759]
[1739284332871,0.02813333,97071.0,97069.0,0.154529]
[1739284333106,0.02913333,97071.0,97069.0,0.154529]
[1739284333551,0.02913333,97071.0,97065.0,0.206046]
[1739284333773,0.02913333,97071.0,97070.0,0.10250365]
[1739284333774,0.02613333,97071.0,97070.0,0.10250365]
[1739284334408,0.02513333,97071.0,97070.0,0.10250365]
[1739284334844,0.02613333,97071.0,97070.0,0.10250365]
[1739284335061,0.02513333,97071.0,97070.0,0.10250365]
[1739284335278,0.02513333,97071.0,97070.0,0.10450365]
[1739284335489,0.02613333,97071.0,97070.0,0.11950365]
[1739284335727,0.02613333,97071.0,97070.0,0.11750365]
[1739284335952,0.02713333,97071.0,97070.0,0.12450365]
[1739284336394,0.02713333,97071.0,97070.0,0.022]
[1739284336812,0.0281082,97071.0,97070.0,0.007]
[1739284337269,0.02713333,97071.0,97070.0,0.022]
[1739284337477,0.02910459,97071.0,97070.0,0.022]
[1739284337682,0.02810459,97071.0,97070.0,0.007]
[1739284337890,0.02810459,97071.0,97070.0,0.022]
[1739284338037,0.02710459,97071.0,97070.0,0.015]
[1739284338235,0.02810459,97071.0,97070.0,0.022]
[1739284338447,0.02810459,97071.0,97058.0,0.08256914]
[1739284338448,0.18263159,97071.0,97058.0,0.28863014]
[1739284338647,0.18263159,97071.0,97070.0,0.008]
[1739284338850,0.18263159,97071.0,97070.0,0.012]
[1739284339231,0.02810459,97071.0,97070.0,0.012]
[1739284339459,0.02810459,97071.0,97070.0,0.11450365]
[1739284339640,0.02810459,97071.0,97070.0,0.16201082]
[1739284339912,0.02613333,97071.0,97070.0,0.16201082]
[1739284340218,0.02613333,97071.0,97070.0,0.31351082]
[1739284340923,0.02613333,97071.0,97070.0,0.25800365]
[1739284341125,0.02613333,97071.0,97070.0,0.41253065]
[1739284341126,0.02513333,97071.0,97070.0,0.41253065]
[1739284341329,0.02613333,97071.0,97070.0,0.41953065]
[1739284341551,0.02713333,97071.0,97070.0,0.40353065]
[1739284341769,0.02613333,97071.0,97070.0,0.38553065]
[1739284342205,0.02713333,97071.0,97070.0,0.39253065]
[1739284342422,0.02513333,97071.0,97070.0,0.38553065]
[1739284342843,0.02613333,97071.0,97070.0,0.46693971]
[1739284343031,0.02513333,97071.0,97070.0,0.45993971]
[1739284343242,0.01613333,97071.0,97070.0,0.47493971]
[1739284343516,0.01613333,97071.0,97070.0,0.80133971]
[1739284343733,0.01513333,97071.0,97070.0,0.78633971]
[1739284344172,0.01613333,97071.0,97070.0,0.95133971]
[1739284344383,0.01613333,97071.0,97070.0,0.95833971]
[1739284344745,0.01613333,97071.0,97070.0,0.95133971]
[1739284344948,0.01613333,97071.0,97070.0,0.95833971]
[1739284345151,0.02041665,97124.0,97073.0,0.15]
[1739284345383,0.154459,97114.0,97101.0,0.154477]
[1739284345788,0.00200053,97113.0,97101.0,0.154476]
[1739284345959,0.00200053,97113.0,97100.0,0.154479]
[1739284346155,0.00200053,97113.0,97105.0,0.154471]
[1739284346360,0.02041665,97124.0,97083.0,0.206009]
[1739284346558,0.02041665,97124.0,97084.0,0.17655183]
[1739284346893,0.02041665,97124.0,97101.0,0.154478]
[1739284347075,0.03041665,97124.0,97100.0,0.154479]
[1739284347262,0.03041665,97124.0,97084.0,0.17655183]
[1739284347263,0.15,97121.0,97084.0,0.17655183]
[1739284347444,0.154475,97103.0,97089.0,0.154496]
[1739284347639,0.154475,97103.0,97084.0,0.17655183]
[1739284347640,0.205962,97106.0,97090.0,0.10250365]
[1739284347848,0.00205848,97102.0,97090.0,0.10250365]
[1739284348057,0.154472,97105.0,97090.0,0.10250365]
[1739284348258,0.00205848,97101.0,97090.0,0.10250365]
[1739284348471,0.154475,97103.0,97091.0,0.154494]
[1739284348681,0.00205869,97102.0,97091.0,0.154494]
[1739284348901,0.00205869,97102.0,97101.0,0.154478]
[1739284349114,0.33088,97134.0,97101.0,0.154478]
[1739284349115,0.01,97124.0,97101.0,0.10250365]
[1739284349330,0.00055106,97125.0,97124.0,0.153441]
[1739284349544,0.00099003,97126.0,97124.0,0.0565304]
[1739284349750,0.0773,97150.0,97124.0,0.0565304]
[1739284349957,0.0001332,97126.0,97104.0,0.154473]
[1739284350165,0.0001332,97126.0,97114.0,0.08256914]
[1739284350388,0.0001332,97126.0,97115.0,0.10250365]
[1739284350591,0.0011332,97126.0,97124.0,0.009]
[1739284351000,0.0011332,97126.0,97103.0,0.15]
[1739284351001,0.0001332,97126.0,97125.0,0.25694365]
[1739284351212,0.0001332,97126.0,97125.0,0.32382332]